bitfinex/quotes_BTCUSD_20260127
["timestamp","ask_amount","ask_price","bid_price","bid_amount"]
[1769532130933,4.645e-05,88755.0,88737.0,0.66994434]
[1769532131056,4.645e-05,88755.0,88737.0,0.69246643]
[1769532133067,0.02339039,88755.0,88737.0,0.66994434]
[1769532134576,0.64542733,88753.0,88731.0,0.69246643]
[1769532134743,0.64542733,88752.0,88731.0,0.69246643]
[1769532134949,0.02334394,88751.0,88731.0,0.69246643]
[1769532135492,0.02334394,88751.0,88734.0,0.67027754]
[1769532135944,0.64542733,88751.0,88734.0,0.0003332]
[1769532136144,0.02334394,88748.0,88734.0,0.0003332]
[1769532136381,0.02334394,88747.0,88734.0,0.0003332]
[1769532136759,0.02334394,88747.0,88734.0,0.67027754]
[1769532136989,0.02334394,88747.0,88734.0,0.67023134]
[1769532137865,0.02334394,88784.0,88747.0,0.02252209]
[1769532138046,0.02334394,88783.0,88750.0,0.66994434]
[1769532138404,4.647e-05,88784.0,88748.0,0.11576]
[1769532138405,0.02334394,88781.0,88755.0,0.02252209]
[1769532138629,0.02334394,88781.0,88758.0,0.66994434]
[1769532138801,0.02334394,88781.0,88740.0,0.33396769]
[1769532138802,0.02334394,88779.0,88735.0,0.22538928]
[1769532139003,0.02334394,88777.0,88747.0,0.02252209]
[1769532139201,0.02334394,88777.0,88750.0,0.66994434]
[1769532139400,0.02334394,88777.0,88753.0,0.02252209]
[1769532139619,0.02334394,88777.0,88754.0,0.66994434]
[1769532141503,0.02334394,88777.0,88754.0,0.69246643]
[1769532141944,0.02334394,88777.0,88754.0,0.66994434]
[1769532142104,0.17398768,88776.0,88755.0,0.02252209]
[1769532142318,0.19733162,88776.0,88755.0,0.69246643]
[1769532143840,0.17398768,88776.0,88755.0,0.69246643]
[1769532144001,0.02482065,88775.0,88755.0,0.69246643]
[1769532144409,0.17398768,88774.0,88755.0,0.69246643]
[1769532144621,0.02419941,88773.0,88755.0,0.69246643]
[1769532144782,0.02419941,88772.0,88755.0,0.69246643]
[1769532145380,4.647e-05,88784.0,88755.0,0.66994434]
[1769532145381,0.17398768,88779.0,88755.0,0.66994434]
[1769532145601,0.02419941,88778.0,88758.0,0.02408687]
[1769532145839,0.02419941,88778.0,88758.0,0.66908047]
[1769532146029,0.02419941,88777.0,88758.0,0.66908047]
[1769532146986,0.02419941,88771.0,88745.0,0.000287]
[1769532147152,0.01,88758.0,88745.0,0.6452806]
[1769532147561,0.05632599,88769.0,88745.0,0.6452806]
[1769532147562,0.18322081,88762.0,88745.0,0.000287]
[1769532147717,0.02419941,88759.0,88745.0,0.000287]
[1769532147922,0.02419941,88783.0,88751.0,0.6449936]
[1769532148147,0.02419941,88783.0,88754.0,0.02408687]
[1769532148348,0.099,88789.0,88751.0,0.11576]
[1769532148525,0.04060937,88797.0,88766.0,0.02408687]
[1769532148727,0.02419941,88795.0,88768.0,0.02408687]
[1769532148924,0.02419941,88795.0,88771.0,0.6449936]
[1769532149141,0.02419941,88795.0,88774.0,0.02408687]
[1769532149344,0.02419941,88795.0,88775.0,0.6449936]
[1769532149554,0.099,88791.0,88775.0,0.6449936]
[1769532149783,0.02419941,88790.0,88775.0,0.6449936]
[1769532151507,0.06480878,88797.0,88775.0,0.6449936]
[1769532151716,0.02419941,88791.0,88775.0,0.6449936]
[1769532152081,0.02419941,88791.0,88775.0,0.66908047]
[1769532152626,0.02419941,88798.0,88766.0,0.02408687]
[1769532152839,0.02419941,88798.0,88769.0,0.6449936]
[1769532153139,0.02419941,88806.0,88774.0,0.02408687]
[1769532153339,0.02419941,88806.0,88778.0,0.02408687]
[1769532153563,0.06480878,88814.0,88782.0,0.02408687]
[1769532153747,0.06480878,88814.0,88785.0,0.6449936]
[1769532153958,0.06480878,88814.0,88789.0,0.6449936]
[1769532154158,0.06480878,88814.0,88791.0,0.66908047]
[1769532154737,0.099,88812.0,88791.0,0.66908047]
[1769532155144,0.099,88812.0,88792.0,0.02408687]
[1769532155347,0.02419941,88809.0,88792.0,0.02408687]
[1769532157243,0.099,88812.0,88790.0,0.6449936]
[1769532157460,0.099,88807.0,88783.0,0.02408687]
[1769532157658,0.02419941,88806.0,88784.0,0.02408687]
[1769532157855,0.02419941,88806.0,88782.0,0.11576]
[1769532157856,0.02419941,88806.0,88787.0,0.6449936]
[1769532158052,0.02419941,88806.0,88787.0,0.66908047]
[1769532158628,0.02419941,88806.0,88788.0,0.66908047]
[1769532159017,0.02419941,88806.0,88789.0,0.6449936]
[1769532159218,0.06480878,88814.0,88792.0,0.02408687]
[1769532159415,0.06480878,88814.0,88795.0,0.6449936]
[1769532159773,0.04060937,88814.0,88794.0,0.02408687]
[1769532159969,0.04060937,88814.0,88789.0,0.66908047]
[1769532159970,0.12319941,88810.0,88789.0,0.66908047]
[1769532160598,0.0006978,88808.0,88789.0,0.66908047]
[1769532160802,0.02489721,88808.0,88789.0,0.66908047]
[1769532160973,0.02489721,88808.0,88750.0,0.33396769]
[1769532161174,0.02489721,88808.0,88743.0,0.80774935]
[1769532161175,0.02419941,88797.0,88763.0,0.6449936]
[1769532161392,0.04060937,88798.0,88743.0,0.80774935]
[1769532161393,0.33396769,88780.0,88751.0,0.6449936]
[1769532161598,0.04060937,88784.0,88746.0,0.02704]
[1769532161599,0.02419941,88777.0,88752.0,0.13984687]
[1769532161821,0.02419941,88777.0,88757.0,0.6449936]
[1769532162016,0.04060937,88789.0,88761.0,0.02408687]
[1769532162220,0.02419941,88788.0,88765.0,0.02408687]
[1769532162435,0.02419941,88786.0,88753.0,0.00112909]
[1769532162637,0.02419941,88786.0,88761.0,0.02408687]
[1769532162861,0.02419941,88786.0,88762.0,0.66908047]
[1769532163012,0.02419941,88785.0,88762.0,0.66908047]
[1769532163317,0.096923,88789.0,88762.0,0.66908047]
[1769532163318,0.65134568,88781.0,88762.0,0.66908047]
[1769532163520,0.02419941,88780.0,88762.0,0.66908047]
[1769532164921,0.65134568,88795.0,88764.0,0.6449936]
[1769532165141,0.02419941,88793.0,88768.0,0.6449936]
[1769532165420,0.02419941,88793.0,88759.0,0.00027957]
[1769532165421,0.02419941,88793.0,88772.0,0.6449936]
[1769532165671,0.65134568,88793.0,88772.0,0.6449936]
[1769532165846,0.02419941,88792.0,88772.0,0.6449936]
[1769532166181,0.65134568,88793.0,88772.0,0.6449936]
[1769532166182,0.32639426,88793.0,88772.0,0.6449936]
[1769532166327,0.2102636,88806.0,88775.0,0.02408687]
[1769532166536,0.02419941,88804.0,88778.0,0.6449936]
[1769532166734,0.02419941,88804.0,88781.0,0.02408687]
[1769532166937,0.02419941,88804.0,88773.0,0.11576]
[1769532166938,0.02419941,88804.0,88784.0,0.6449936]
[1769532167137,0.02419941,88804.0,88784.0,0.66908047]
[1769532167563,0.02419941,88803.0,88784.0,0.66908047]
[1769532168950,0.0002331,88808.0,88785.0,0.02408687]
[1769532169216,0.0002331,88808.0,88789.0,0.02408687]
[1769532169342,0.02419941,88807.0,88789.0,0.02408687]
[1769532170009,0.02419941,88807.0,88789.0,0.66908047]
[1769532170531,0.02419941,88805.0,88776.0,0.02408687]
[1769532170710,0.02419941,88805.0,88773.0,0.11576]
[1769532170711,0.02419941,88805.0,88777.0,0.6449936]
[1769532170887,0.02419941,88805.0,88780.0,0.02408687]
[1769532171090,0.02419941,88805.0,88773.0,0.11576]
[1769532171091,0.02419941,88805.0,88782.0,0.66908047]
[1769532171292,0.099,88802.0,88782.0,0.66908047]
[1769532171498,0.02419941,88801.0,88782.0,0.66908047]
[1769532171697,0.12319941,88800.0,88782.0,0.66908047]
[1769532171864,0.02419941,88800.0,88782.0,0.66908047]
[1769532172993,0.02419941,88799.0,88782.0,0.66908047]
[1769532176506,0.02419941,88799.0,88765.0,0.05632816]
[1769532176749,0.099,88796.0,88769.0,0.65871127]
[1769532176920,0.099,88796.0,88766.0,0.11572]
[1769532176921,0.099,88796.0,88771.0,0.65871127]
[1769532177133,0.02321497,88798.0,88774.0,0.02386667]
[1769532177304,0.02321497,88798.0,88778.0,0.02386667]
[1769532177515,0.60083599,88797.0,88766.0,0.11572]
[1769532177708,0.099,88806.0,88769.0,0.65871127]
[1769532177914,0.0004647,88807.0,88773.0,0.65871127]
[1769532177915,0.099,88801.0,88773.0,0.65871127]
[1769532178113,0.02321497,88798.0,88774.0,0.02386667]
[1769532178367,0.02321497,88796.0,88775.0,0.68257794]
[1769532178698,0.02321497,88796.0,88766.0,0.11572]
[1769532178699,0.02321497,88796.0,88777.0,0.65871127]
[1769532178898,0.02321497,88796.0,88779.0,0.65871127]
[1769532179039,0.02321497,88796.0,88781.0,0.65871127]
[1769532179234,0.099,88802.0,88782.0,0.02386667]
[1769532179435,0.12221497,88802.0,88783.0,0.65871127]
[1769532179640,0.02321497,88801.0,88782.0,0.02386667]
[1769532179839,0.12221497,88800.0,88783.0,0.65871127]
[1769532180102,0.02321497,88799.0,88783.0,0.65871127]
[1769532180426,0.02321497,88799.0,88766.0,0.11572]
[1769532180647,0.02321497,88799.0,88734.0,0.45078293]
[1769532180648,0.099,88799.0,88768.0,0.65871127]
[1769532180847,0.02321497,88797.0,88771.0,0.02386667]
[1769532181072,0.02321497,88797.0,88774.0,0.65871127]
[1769532181283,0.02321497,88797.0,88777.0,0.02386667]
[1769532181531,0.02321497,88797.0,88778.0,0.65871127]
[1769532182469,0.02321497,88797.0,88778.0,0.68257794]
[1769532182662,0.02321497,88806.0,88780.0,0.65871127]
[1769532182885,0.02321497,88804.0,88782.0,0.68257794]
[1769532183134,0.099,88804.0,88782.0,0.68257794]
[1769532183310,0.02321497,88803.0,88782.0,0.68257794]
[1769532183846,0.0004647,88807.0,88782.0,0.65871127]
[1769532184045,0.0004647,88807.0,88785.0,0.02386667]
[1769532184248,0.02367967,88807.0,88786.0,0.65871127]
[1769532184480,0.02367967,88807.0,88789.0,0.02386667]
[1769532184481,0.0004647,88807.0,88789.0,0.02386667]
[1769532184685,0.0002331,88808.0,88804.0,0.65871127]
[1769532184859,0.0002331,88808.0,88780.0,0.33396769]
[1769532184860,0.02321497,88820.0,88780.0,0.33396769]
[1769532185120,0.02335432,88820.0,88789.0,0.02386667]
[1769532185313,0.02335432,88820.0,88792.0,0.65871127]
[1769532185515,0.00013935,88820.0,88795.0,0.02386667]
[1769532185633,0.00013935,88820.0,88798.0,0.65871127]
[1769532185837,0.00013935,88820.0,88801.0,0.02386667]
[1769532186091,0.00013935,88820.0,88802.0,0.65871127]
[1769532186634,0.00013935,88820.0,88804.0,0.65871127]
[1769532186839,0.10080614,88817.0,88793.0,0.11572]
[1769532187044,0.02321497,88814.0,88793.0,0.10907801]
[1769532187262,0.10080614,88811.0,88793.0,0.10907801]
[1769532187465,0.02321497,88808.0,88793.0,0.10907801]
[1769532187662,0.02321497,88806.0,88793.0,0.10907801]
[1769532187878,0.00013935,88820.0,88635.0,0.66816281]
[1769532187879,0.10080614,88803.0,88794.0,0.11572]
[1769532188080,0.02321497,88802.0,88794.0,0.11572]
[1769532188280,0.02321497,88802.0,88794.0,0.11342309]
[1769532188480,0.02321497,88802.0,88794.0,0.10423411]
[1769532188735,0.02321497,88809.0,88794.0,0.09733945]
[1769532188946,0.02321497,88807.0,88794.0,0.08814467]
[1769532189151,0.10080614,88806.0,88794.0,0.07894772]
[1769532189292,0.02321497,88805.0,88794.0,0.06974846]
[1769532189486,0.02321497,88805.0,88794.0,0.06054619]
[1769532189750,0.02321497,88805.0,88794.0,0.05019004]
[1769532190001,0.02321497,88805.0,88794.0,0.04098138]
[1769532191844,0.02321497,88805.0,88794.0,0.03638186]
[1769532192070,0.0630941,88820.0,88794.0,0.0248847]
[1769532192293,0.02321497,88819.0,88794.0,0.67554518]
[1769532192509,0.0630941,88820.0,88794.0,0.66519077]
[1769532192510,0.10080614,88816.0,88794.0,0.66519077]
[1769532192720,0.02321497,88813.0,88794.0,0.66519077]
[1769532192923,0.10080614,88812.0,88794.0,0.66519077]
[1769532193128,0.02321497,88811.0,88794.0,0.6645156]
[1769532193339,0.02321497,88811.0,88794.0,0.65991208]
[1769532195366,0.02321497,88811.0,88794.0,0.65761007]
[1769532195511,0.02321497,88811.0,88794.0,0.65300565]
[1769532195694,0.02321497,88811.0,88794.0,0.64494661]
[1769532195897,0.02321497,88811.0,88794.0,0.63458253]
[1769532196122,0.02321497,88809.0,88789.0,0.11572]
[1769532196395,0.02321497,88805.0,88789.0,0.11572]
[1769532196577,0.02321497,88803.0,88789.0,0.11572]
[1769532197937,0.0001675,88812.0,88782.0,0.05631663]
[1769532197938,0.12583381,88801.0,88782.0,0.11572]
[1769532198113,0.02321497,88800.0,88783.0,0.65871127]
[1769532198532,0.02321497,88800.0,88785.0,0.05631545]
[1769532198710,0.02321497,88800.0,88782.0,0.11572]
[1769532198911,0.02338247,88812.0,88790.0,0.3335382]
[1769532199210,0.02338247,88812.0,88782.0,0.11572]
[1769532199211,0.02321497,88808.0,88785.0,0.02386667]
[1769532199354,0.02321497,88808.0,88789.0,0.71502423]
[1769532199557,0.02321497,88808.0,88789.0,0.65871127]
[1769532199766,0.02321497,88806.0,88789.0,0.65871127]
[1769532200309,0.12583381,88806.0,88789.0,0.65871127]
[1769532200489,0.0001675,88812.0,88780.0,0.05631879]
[1769532200490,0.02321497,88803.0,88780.0,0.05631879]
[1769532200691,0.12583381,88801.0,88781.0,0.11572]
[1769532201028,0.02321497,88797.0,88781.0,0.11572]
[1769532201577,0.02321497,88796.0,88781.0,0.11572]
[1769532203766,0.12583381,88796.0,88781.0,0.11572]
[1769532203899,0.02480764,88795.0,88781.0,0.11572]
[1769532204545,0.02322005,88793.0,88781.0,0.11572]
[1769532204706,0.02322005,88791.0,88781.0,0.11572]
[1769532205616,0.02322005,88791.0,88781.0,0.1161847]
[1769532205821,0.02322005,88811.0,88782.0,0.66235545]
[1769532206047,0.02322005,88809.0,88781.0,0.1161847]
[1769532206244,0.12583381,88807.0,88785.0,0.66235545]
[1769532206464,0.02322005,88805.0,88785.0,0.66235545]
[1769532207460,0.12583381,88804.0,88785.0,0.66235545]
[1769532207662,0.02322005,88803.0,88785.0,0.66235545]
[1769532207889,0.02322005,88801.0,88785.0,0.66235545]
[1769532208505,0.02322005,88800.0,88785.0,0.66235545]
[1769532211141,0.02215997,88800.0,88785.0,0.71867074]
[1769532211455,0.02074179,88800.0,88785.0,0.66235545]
[1769532211704,0.12546642,88800.0,88781.0,0.17250198]
[1769532211872,0.02250777,88799.0,88782.0,0.66235545]
[1769532212071,0.02250777,88799.0,88785.0,0.66235545]
[1769532212635,0.02250777,88799.0,88783.0,0.05631648]
[1769532212636,0.02138164,88799.0,88783.0,0.71867253]
[1769532212890,0.02138164,88799.0,88789.0,0.0563128]
[1769532213116,0.02138164,88799.0,88789.0,0.05631294]
[1769532213323,0.02138164,88799.0,88789.0,0.05013909]
[1769532213472,0.02138164,88799.0,88789.0,0.04452589]
[1769532213656,0.02138164,88799.0,88788.0,0.71866932]
[1769532214056,0.02121355,88799.0,88788.0,0.65698393]
[1769532215661,0.02121355,88799.0,88782.0,0.22214801]
[1769532215882,0.02121355,88799.0,88783.0,0.66235545]
[1769532216772,0.02121355,88799.0,88786.0,0.05631484]
[1769532217008,0.02121355,88799.0,88785.0,0.05631579]
[1769532217572,0.02121355,88799.0,88786.0,0.05631456]
[1769532217773,0.02121355,88799.0,88782.0,0.67401073]
[1769532218024,0.02121355,88799.0,88788.0,0.05631349]
[1769532218198,0.02322005,88809.0,88783.0,0.16583052]
[1769532218398,0.02322005,88809.0,88787.0,0.66235545]
[1769532218846,0.02322005,88809.0,88790.0,0.66235545]
[1769532219066,0.02322005,88807.0,88790.0,0.65422145]
[1769532219270,0.0001675,88812.0,88781.0,0.28201522]
[1769532219271,0.13963032,88804.0,88781.0,0.28201522]
[1769532219571,0.13963032,88801.0,88782.0,0.05631731]
[1769532219706,0.0001675,88812.0,88782.0,0.05631731]
[1769532219707,0.02322005,88800.0,88782.0,0.66235545]
[1769532219908,0.02322005,88800.0,88781.0,0.1161847]
[1769532220127,0.02322005,88800.0,88782.0,0.66235545]
[1769532220304,0.02322005,88800.0,88784.0,0.71867167]
[1769532220503,0.02322005,88800.0,88786.0,0.05631481]
[1769532220758,0.02322005,88800.0,88784.0,0.71867134]
[1769532220957,0.02322005,88800.0,88785.0,0.05631578]
[1769532221256,0.02322005,88800.0,88786.0,0.66235545]
[1769532222264,0.02322005,88800.0,88786.0,0.71867059]
[1769532223157,0.02322005,88800.0,88786.0,0.66235545]
[1769532223760,0.26687551,88800.0,88786.0,0.66235545]
[1769532223957,0.02322005,88799.0,88786.0,0.65705317]
[1769532224380,0.02322005,88799.0,88782.0,0.66235545]
[1769532224694,0.02322005,88799.0,88788.0,0.05631379]
[1769532224859,0.02322005,88799.0,88787.0,0.71866991]
[1769532225059,0.02322005,88799.0,88787.0,0.66235545]
[1769532225276,0.02322005,88809.0,88787.0,0.66235545]
[1769532225551,0.02322005,88799.0,88781.0,0.17250269]
[1769532225678,0.02322005,88799.0,88782.0,0.71867277]
[1769532226085,0.02322005,88799.0,88782.0,0.71867301]
[1769532226481,0.02322005,88799.0,88782.0,0.66235545]
[1769532226687,0.02466884,88799.0,88782.0,0.66235545]
[1769532227496,0.26687551,88800.0,88785.0,0.05631556]
[1769532227693,0.02322005,88804.0,88786.0,0.65175412]
[1769532227901,0.02322005,88804.0,88786.0,0.69746557]
[1769532228107,0.02322005,88804.0,88781.0,0.1161847]
[1769532228108,0.0001675,88812.0,88794.0,0.05630985]
[1769532228322,0.02322005,88811.0,88794.0,0.66235545]
[1769532228523,0.29009556,88810.0,88794.0,0.66235545]
[1769532229921,0.02322005,88809.0,88794.0,0.66235545]
[1769532231259,0.02322005,88809.0,88794.0,0.65174868]
[1769532231586,0.02322005,88809.0,88790.0,0.02409103]
[1769532231868,0.0001675,88812.0,88796.0,0.68644648]
[1769532232021,0.0001675,88812.0,88796.0,0.73683182]
[1769532232223,0.02338755,88812.0,88796.0,0.73683182]
[1769532232466,0.07401408,88812.0,88796.0,0.68052337]
[1769532232726,0.02338755,88812.0,88796.0,0.6700469]
[1769532232964,0.02338755,88812.0,88796.0,0.65411754]
[1769532233184,0.08465463,88809.0,88788.0,0.02409103]
[1769532233374,0.02322005,88808.0,88790.0,0.66235545]
[1769532233496,0.02322005,88808.0,88793.0,0.66235545]
[1769532233936,0.02322005,88808.0,88793.0,0.71866569]
[1769532234162,0.02322005,88808.0,88794.0,0.0563101]
[1769532234363,0.02322005,88808.0,88794.0,0.67583194]
[1769532235290,0.02322005,88808.0,88794.0,0.73214168]
[1769532235673,0.02322005,88808.0,88794.0,0.67583194]
[1769532235844,0.02322005,88808.0,88794.0,0.73214186]
[1769532236040,0.02257672,88808.0,88794.0,0.67583194]
[1769532236289,0.02257672,88808.0,88794.0,0.73214173]
[1769532236485,0.02257672,88808.0,88794.0,0.67583194]
[1769532237300,0.02257672,88808.0,88792.0,0.67583194]
[1769532239379,0.02257672,88808.0,88793.0,0.05631069]
[1769532239580,0.02257672,88808.0,88792.0,0.05631106]
[1769532239791,0.02257672,88808.0,88793.0,0.67583194]
[1769532240198,0.02257672,88808.0,88793.0,0.73214261]
[1769532240408,0.02257672,88808.0,88793.0,0.67583194]
[1769532240820,0.26687551,88803.0,88786.0,0.67583194]
[1769532241022,0.08465463,88807.0,88787.0,0.05631428]
[1769532241023,0.26687551,88800.0,88787.0,0.05631428]
[1769532241348,0.26687551,88800.0,88787.0,0.67583194]
[1769532241584,0.0242838,88799.0,88787.0,0.67583194]
[1769532242340,0.0242838,88799.0,88786.0,0.11572]
[1769532242966,0.0242838,88799.0,88786.0,0.17203517]
[1769532243172,0.0242838,88799.0,88786.0,0.79155194]
[1769532243384,0.0242838,88799.0,88786.0,0.84786709]
[1769532243807,0.0242838,88799.0,88786.0,0.79155194]
[1769532244606,0.0001675,88812.0,88792.0,0.67583194]
[1769532244607,0.369709,88810.0,88792.0,0.67583194]
[1769532244826,0.363277,88809.0,88796.0,0.67583194]
[1769532245029,0.363277,88809.0,88788.0,0.67583194]
[1769532245030,0.44793163,88809.0,88788.0,0.67583194]
[1769532245277,0.44793163,88809.0,88789.0,0.69847594]
[1769532245278,0.26687551,88800.0,88789.0,0.69847594]
[1769532245463,0.0242838,88808.0,88789.0,0.69847594]
[1769532245675,0.0242838,88808.0,88792.0,0.67583194]
[1769532246116,0.0242838,88808.0,88770.0,0.0002289]
[1769532246332,0.0242838,88791.0,88780.0,0.05631838]
[1769532246577,0.099,88806.0,88775.0,0.04060937]
[1769532246794,0.0004647,88806.0,88791.0,0.022644]
[1769532248107,0.0006629,88806.0,88791.0,0.022644]
[1769532248324,0.0006629,88806.0,88791.0,0.69847594]
[1769532255678,0.0249467,88806.0,88791.0,0.67583194]
[1769532255850,0.0242838,88790.0,88773.0,0.66980105]
[1769532256008,0.29111775,88790.0,88779.0,0.11572]
[1769532256211,0.0242838,88790.0,88779.0,0.11572]
[1769532256616,0.827899,88799.0,88780.0,0.67583194]
[1769532256845,0.0001982,88800.0,88781.0,0.67583194]
[1769532257090,0.0001982,88800.0,88787.0,0.022644]
[1769532257223,0.0001982,88800.0,88788.0,0.67583194]
[1769532258054,0.0004647,88806.0,88788.0,0.67583194]
[1769532258382,0.199355,88804.0,88788.0,0.67583194]
[1769532258797,0.183757,88804.0,88788.0,0.67583194]
[1769532259170,0.166818,88804.0,88788.0,0.67583194]
[1769532259814,0.1911018,88804.0,88788.0,0.67583194]
[1769532259981,0.15056,88803.0,88788.0,0.67575287]
[1769532260180,0.107781,88803.0,88788.0,0.67575287]
[1769532260383,0.14946,88803.0,88788.0,0.67575287]
[1769532260557,0.107582,88803.0,88788.0,0.67575287]
[1769532260762,0.01,88788.0,88776.0,0.11572]
[1769532261179,0.02380738,88791.0,88776.0,0.76820207]
[1769532261401,0.26695621,88800.0,88777.0,0.70880269]
[1769532261402,0.099,88799.0,88777.0,0.70880269]
[1769532261598,0.26695621,88800.0,88777.0,0.70880269]
[1769532261599,0.02380738,88798.0,88779.0,0.65248207]
[1769532261811,0.02380738,88798.0,88780.0,0.02405049]
[1769532262015,0.02380738,88798.0,88781.0,0.65248207]
[1769532264196,0.02380738,88798.0,88781.0,0.61848207]
[1769532264734,0.02486985,88797.0,88778.0,0.02384941]
[1769532264895,0.02486985,88797.0,88779.0,0.72458019]
[1769532265300,0.02486985,88797.0,88781.0,0.66826099]
[1769532268648,0.02486985,88797.0,88778.0,0.6921104]
[1769532269555,0.000203,88805.0,88776.0,0.11572]
[1769532269782,0.306342,88804.0,88780.0,0.02384941]
[1769532269987,0.02486985,88798.0,88780.0,0.6921104]
[1769532270464,0.02486985,88798.0,88780.0,0.66826099]
[1769532270689,0.02486985,88798.0,88777.0,0.22528232]
[1769532270690,0.02486985,88798.0,88782.0,0.6921104]
[1769532271857,0.099,88797.0,88776.0,0.11572]
[1769532272073,0.02486985,88796.0,88777.0,0.66826099]
[1769532272641,0.02486985,88794.0,88778.0,0.11572]
[1769532272972,0.099,88794.0,88778.0,0.11572]
[1769532273224,0.02486985,88793.0,88778.0,0.11572]
[1769532274094,0.62619949,88792.0,88774.0,9.3e-05]
[1769532274264,0.02486985,88791.0,88779.0,0.11572]
[1769532274816,0.839976,88799.0,88781.0,0.02384941]
[1769532274975,0.839976,88799.0,88782.0,0.66826099]
[1769532275540,0.02486985,88799.0,88782.0,0.66826099]
[1769532275728,0.000203,88805.0,88782.0,0.66826099]
[1769532275945,0.788876,88799.0,88782.0,0.66826099]
[1769532276502,0.788876,88799.0,88782.0,0.6921104]
[1769532277745,0.000203,88805.0,88789.0,0.66826099]
[1769532277968,0.000203,88805.0,88792.0,0.02384941]
[1769532278121,0.000203,88805.0,88795.0,0.02384941]
[1769532278331,0.06364907,88827.0,88798.0,0.02384941]
[1769532278332,0.0029821,88827.0,88798.0,0.02384941]
[1769532278525,0.0029821,88827.0,88796.0,0.11572]
[1769532278526,0.458328,88821.0,88797.0,0.66826099]
[1769532278728,0.373484,88821.0,88813.0,0.02384941]
[1769532278938,0.337444,88821.0,88813.0,0.02384941]
[1769532279158,0.337444,88821.0,88813.0,0.01384941]
[1769532279459,0.337444,88821.0,88812.0,0.11572]
[1769532279690,0.117341,88821.0,88812.0,0.11572]
[1769532279902,0.0029821,88827.0,88812.0,0.11572]
[1769532280076,0.0029821,88827.0,88814.0,0.66826099]
[1769532280284,0.0029821,88827.0,88812.0,0.11572]
[1769532280285,0.01165503,88843.0,88828.0,0.66826099]
[1769532280286,0.0003005,88836.0,88828.0,0.66826099]
[1769532280630,0.0002,88843.0,88822.0,0.000148]
[1769532280631,0.0002,88843.0,88833.0,0.02384941]
[1769532280806,0.11266125,88840.0,88834.0,0.69204258]
[1769532281012,0.11266125,88839.0,88835.0,0.02356111]
[1769532281167,0.11266125,88838.0,88837.0,0.02327266]
[1769532281371,0.11266125,88838.0,88837.0,0.6892261]
[1769532281573,0.0004005,88848.0,88837.0,0.66826099]
[1769532281760,0.11261847,88847.0,88837.0,0.6921104]
[1769532281957,0.11261847,88846.0,88837.0,0.6921104]
[1769532282162,0.00053981,88848.0,88839.0,0.66826099]
[1769532282471,0.00053981,88848.0,88828.0,0.11572]
[1769532282472,0.943386,88858.0,88845.0,0.66826099]
[1769532282687,0.939445,88856.0,88847.0,0.66768359]
[1769532282911,0.11253652,88855.0,88849.0,0.66826099]
[1769532283118,0.11253652,88855.0,88848.0,0.02384941]
[1769532283119,0.11253652,88854.0,88850.0,0.6921104]
[1769532283336,0.26715671,88860.0,88850.0,0.02354941]
[1769532283537,0.26715671,88860.0,88850.0,0.6918104]
[1769532283735,0.0002005,88860.0,88850.0,0.6918104]
[1769532283941,0.26715621,88870.0,88848.0,0.66826099]
[1769532283942,0.09019167,88865.0,88848.0,0.66826099]
[1769532284347,1.291425,88867.0,88850.0,0.66826099]
[1769532284575,1.291425,88867.0,88853.0,0.02384941]
[1769532284774,0.278007,88862.0,88855.0,0.66826099]
[1769532284933,0.620764,88864.0,88856.0,0.02384941]
[1769532285510,0.620764,88864.0,88847.0,0.00013931]
[1769532285511,0.46329,88864.0,88852.0,0.11568]
[1769532285728,0.26695621,88862.0,88848.0,0.6672928]
[1769532285912,0.589641,88861.0,88852.0,0.05588]
[1769532286276,0.100157,88859.0,88847.0,0.00013931]
[1769532286486,0.29182606,88857.0,88847.0,0.00013931]
[1769532286690,0.26695621,88857.0,88847.0,0.00013931]
[1769532286866,0.04060937,88861.0,88829.0,0.66826099]
[1769532286867,0.26695621,88849.0,88829.0,0.66826099]
[1769532287084,0.26695621,88840.0,88826.0,0.13952941]
[1769532287626,0.00013924,88849.0,88826.0,0.13952941]
[1769532287627,0.26695621,88836.0,88826.0,0.13952941]
[1769532287769,0.26695621,88836.0,88826.0,0.11510241]
[1769532287979,0.26695621,88836.0,88826.0,0.11221392]
[1769532288178,0.29182606,88840.0,88826.0,0.10961357]
[1769532288386,0.29182606,88840.0,88826.0,0.10672347]
[1769532288590,0.29182606,88840.0,88826.0,0.10412166]
[1769532288838,0.29182606,88840.0,88826.0,0.10180837]
[1769532289037,0.29182606,88840.0,88826.0,0.09891598]
[1769532289259,0.29182606,88840.0,88826.0,0.09644091]
[1769532289425,0.26695621,88836.0,88826.0,0.09412585]
[1769532289629,0.02486985,88840.0,88826.0,0.09181025]
[1769532289630,0.02486985,88838.0,88826.0,0.09181025]
[1769532289833,0.12386985,88837.0,88826.0,0.08891498]
[1769532290182,0.12386985,88837.0,88826.0,0.08514986]
[1769532290305,0.12386985,88837.0,88826.0,0.08254241]
[1769532290522,0.02486985,88837.0,88826.0,0.08151254]
[1769532290947,1.25166,88848.0,88826.0,0.77362294]
[1769532291203,1.25166,88848.0,88826.0,0.77346237]
[1769532291378,0.099,88845.0,88826.0,0.77201336]
[1769532291581,1.107006,88842.0,88826.0,0.76969449]
[1769532291783,1.107006,88842.0,88826.0,0.76708512]
[1769532292069,1.096854,88842.0,88826.0,0.76360488]
[1769532292300,1.096854,88842.0,88826.0,0.76099391]
[1769532292519,0.099,88841.0,88826.0,0.09012125]
[1769532292703,0.099,88841.0,88826.0,0.06394977]
[1769532292905,0.099,88841.0,88826.0,0.06104643]
[1769532292906,0.12386985,88841.0,88826.0,0.06104643]
[1769532293109,0.099,88840.0,88826.0,0.05901358]
[1769532293315,0.099,88840.0,88821.0,0.6921104]
[1769532293521,0.03777411,88789.0,88787.0,0.66826099]
[1769532293695,0.03777411,88789.0,88770.0,0.85255118]
[1769532293696,0.099,88818.0,88792.0,0.02384941]
[1769532293899,0.02486985,88817.0,88795.0,0.66826099]
[1769532294065,0.02486985,88817.0,88797.0,0.66826099]
[1769532294466,0.02486985,88817.0,88797.0,0.69253413]
[1769532294663,0.02486985,88817.0,88797.0,0.69299883]
[1769532295096,0.02424351,88816.0,88797.0,0.69299883]
[1769532295528,0.099,88815.0,88797.0,0.0004647]
[1769532295725,0.099,88815.0,88786.0,0.0003161]
[1769532295726,0.02424351,88807.0,88787.0,0.10867922]
[1769532295966,0.02424351,88805.0,88787.0,0.10867922]
[1769532296113,0.64714405,88799.0,88786.0,0.0003161]
[1769532296319,0.02424351,88796.0,88786.0,0.0003161]
[1769532296839,0.02424351,88794.0,88786.0,0.0003161]
[1769532297240,0.02424351,88806.0,88795.0,0.66236008]
[1769532297445,0.11568,88802.0,88795.0,0.6498741]
[1769532297645,0.11568,88802.0,88788.0,0.02427314]
[1769532297846,0.11568,88802.0,88788.0,0.68413643]
[1769532298058,0.11568,88802.0,88788.0,0.68063138]
[1769532298228,0.1102,88801.0,88788.0,0.68063138]